bitfinex-derivatives/quotes_ETHF0:USTF0_20251211
["timestamp","ask_amount","ask_price","bid_price","bid_amount"]
[1765415936874,3.2078,3261.6,3261.5,9.02684998]
[1765415937076,3.21143991,3261.6,3261.5,9.02684998]
[1765415937669,10.09693991,3261.6,3261.5,2.17994998]
[1765415937970,10.09693991,3261.6,3261.5,0.15614998]
[1765415939875,10.09693991,3261.6,3261.5,5.48884998]
[1765415939876,6.71243991,3261.6,3261.5,5.48884998]
[1765415940474,9.85413991,3261.6,3261.5,2.21644998]
[1765415940677,9.85413991,3261.6,3261.5,0.15614998]
[1765415940872,9.85413991,3261.6,3261.5,0.00287998]
[1765415941071,6.3025,3261.1,3261.0,3.2078]
[1765415941674,3.21143991,3261.6,3261.0,11.9413]
[1765415942075,3.21143991,3261.6,3261.2,0.15328]
[1765415942382,3.1608,3261.3,3261.2,3.42568]
[1765415943076,3.1608,3260.2,3260.1,3.36113]
[1765415943282,3.1608,3260.2,3260.1,6.82653]
[1765415943478,3.1608,3260.3,3260.2,3.42573]
[1765415943671,3.1608,3260.3,3260.2,6.82653]
[1765415944074,6.3025,3259.5,3259.4,0.15337]
[1765415944471,6.3025,3259.6,3259.5,2.0603]
[1765415944877,3.1608,3259.1,3259.0,2.0603]
[1765415945075,3.16399015,3259.1,3259.0,2.0603]
[1765415945275,3.16399015,3259.1,3259.0,5.3327]
[1765415945579,0.00319015,3259.1,3259.0,8.7335]
[1765415945984,3.16399015,3259.1,3259.0,8.7335]
[1765415946281,6.30569015,3259.1,3259.0,2.0603]
[1765415946675,3.16399015,3259.1,3259.0,2.0603]
[1765415946870,3.16399015,3259.1,3259.0,5.3327]
[1765415947274,6.2947,3259.0,3258.9,3.2078]
[1765415947482,6.2947,3258.6,3258.5,2.0603]
[1765415948079,3.2078,3258.9,3258.1,0.15343]
[1765415948080,3.1194,3258.2,3258.1,3.42583]
[1765415948278,6.2388,3258.2,3258.1,0.15343]
[1765415949381,3.1194,3258.2,3258.1,0.15343]
[1765415949581,6.2052,3258.2,3258.1,0.15343]
[1765415950680,3.1194,3258.2,3258.1,0.15343]
[1765415951379,6.176,3258.2,3258.1,0.15343]
[1765415951880,3.2078,3258.5,3258.4,3.2253]
[1765415952074,3.2078,3258.9,3258.5,1.9131]
[1765415952479,3.2078,3258.9,3258.8,6.4838]
[1765415952678,6.1978,3258.9,3258.8,6.4838]
[1765415952883,6.1978,3258.9,3258.5,2.06651]
[1765415952884,5.9468,3258.6,3258.5,2.06651]
[1765415953082,2.99,3258.6,3258.5,2.06651]
[1765415953284,2.99,3258.6,3258.5,8.55031]
[1765415953480,3.2078,3258.9,3258.5,8.55031]
[1765415953679,1.3797,3258.0,3256.9,3.2078]
[1765415953884,1.3797,3258.0,3256.5,1.9131]
[1765415953885,3.2078,3257.0,3256.5,1.9131]
[1765415954087,3.2078,3256.6,3256.5,8.3969]
[1765415954283,3.21150604,3256.6,3256.5,8.3969]
[1765415954480,0.00370604,3256.6,3256.5,8.60698298]
[1765415954685,3.2078,3257.2,3256.5,8.60698298]
[1765415954880,3.2078,3256.8,3256.5,8.60698298]
[1765415955192,3.2078,3256.8,3256.7,3.2253]
[1765415955386,3.5095,3256.8,3256.7,3.2253]
[1765415955586,3.51295692,3256.8,3256.7,3.2253]
[1765415955784,0.6034,3256.6,3256.5,1.9131]
[1765415956886,3.21125692,3256.8,3256.7,6.4838]
[1765415957087,3.87745692,3256.8,3256.5,1.9131]
[1765415957588,3.87745692,3256.8,3256.3,0.00246964]
[1765415957589,1.3324,3256.4,3256.3,0.00246964]
[1765415957887,4.5402,3256.4,3256.3,0.00246964]
[1765415958085,4.5402,3256.4,3255.5,2.06665]
[1765415958086,0.6662,3256.1,3255.5,2.06665]
[1765415958291,0.00460462,3256.1,3256.0,6.4838]
[1765415958593,0.6302,3255.7,3255.6,0.55149349]
[1765415958887,1.2604,3255.6,3255.5,2.06665]
[1765415959088,0.6302,3255.6,3255.5,2.06954991]
[1765415959589,3.2078,3255.8,3255.5,5.29484991]
[1765415959783,3.2078,3255.8,3255.7,3.2253]
[1765415960185,3.2078,3255.8,3255.7,7.09189428]
[1765415960385,3.2078,3255.8,3255.7,7.24543428]
[1765415960586,3.7666,3255.8,3255.7,0.15354]
[1765415960783,1.1176,3255.6,3255.5,1.91599991]
[1765415961893,1.1176,3255.6,3255.5,0.00289991]
[1765415962087,4.3254,3255.6,3255.5,0.00289991]
[1765415962393,0.9692,3255.1,3255.0,4.1972]
[1765415962693,3.2078,3255.2,3255.0,5.1384]
[1765415963289,3.2078,3255.2,3255.1,6.4838]
[1765415963593,3.2078,3255.6,3255.1,7.27589487]
[1765415963998,4.0362,3255.2,3255.0,0.00080614]
[1765415964184,0.4142,3254.6,3254.1,3.36142]
[1765415964386,0.8284,3254.5,3254.1,0.15362]
[1765415964792,3.2078,3254.8,3254.4,8.3969]
[1765415965094,0.7582,3254.5,3254.4,1.9131]
[1765415965295,0.3791,3254.0,3253.9,3.2078]
[1765415965694,0.7582,3254.0,3253.9,3.2078]
[1765415965992,0.7582,3254.0,3253.7,1.841]
[1765415965993,0.7582,3253.9,3253.7,1.841]
[1765415966194,0.344,3253.8,3253.7,1.841]
[1765415966384,0.688,3253.6,3253.0,5.1209]
[1765415966587,4.17140229,3253.5,3253.0,5.1384]
[1765415966791,3.2078,3254.0,3253.8,1.9131]
[1765415966995,3.2078,3254.0,3253.4,6.4838]
[1765415966996,5.47783219,3253.9,3253.3,0.15365]
[1765415967285,0.96363219,3253.8,3253.4,1.21699222]
[1765415967485,0.96363219,3253.7,3253.6,6.4838]
[1765415967794,0.00460462,3254.3,3253.9,6.4838]
[1765415967994,0.96355181,3254.2,3253.9,6.4838]
[1765415968300,3.17,3253.2,3251.8,3.36153]
[1765415968591,7.95592166,3252.7,3251.8,3.36153]
[1765415968795,0.96355181,3252.6,3252.0,1.91557761]
[1765415969099,0.96355181,3252.5,3252.1,0.36855007]
[1765415969393,0.96355181,3252.4,3252.0,1.91557761]
[1765415969593,4.756,3252.1,3252.0,1.91557761]
[1765415969893,7.26775181,3252.1,3252.0,1.91557761]
[1765415970085,7.26775181,3252.1,3252.0,0.00247761]
[1765415970289,7.26775181,3252.1,3252.0,1e-08]
[1765415970585,0.96355181,3252.1,3252.0,9.38044194]
[1765415970794,2.5350099,3252.5,3252.2,0.15371]
[1765415970998,3.2078,3252.4,3252.2,3.57481]
[1765415971198,3.2078,3252.4,3252.0,2.04470001]
[1765415971199,2.4952,3252.3,3252.0,2.04470001]
[1765415971401,2.4952,3252.1,3252.0,2.04470001]
[1765415971596,9.2078,3252.4,3251.4,2.19845]
[1765415971799,9.2078,3252.4,3249.0,2.0447]
[1765415971800,6.9228,3251.0,3250.0,3.42295929]
[1765415972005,3.4026,3250.2,3250.0,0.21515929]
[1765415972204,6.9228,3250.1,3250.0,0.21515929]
[1765415972500,1.57682869,3250.6,3250.0,0.21515929]
[1765415972702,0.00362325,3250.6,3250.1,2.0447]
[1765415972902,6.9228,3250.1,3250.0,0.21515929]
[1765415973295,6.9228,3250.1,3248.7,2.0447]
[1765415973296,3.91583933,3250.1,3248.7,2.0447]
[1765415973495,0.00362325,3250.6,3249.5,0.15384]
[1765415973698,1.98816258,3250.6,3249.5,0.15384]
[1765415973898,1.98816258,3250.6,3249.6,0.15383]
[1765415974200,0.00362325,3250.6,3250.2,0.1538]
[1765415974712,0.00362325,3250.6,3250.3,0.0426619]
[1765415975207,0.00362325,3250.6,3250.2,0.1538]
[1765415975505,0.00362325,3250.6,3250.3,0.92192794]
[1765415975706,0.00461205,3250.8,3250.3,1.07572794]
[1765415975901,0.00461205,3250.8,3250.3,0.1538]
[1765415976607,3.2078,3250.4,3250.3,0.15710307]
[1765415977107,3.2078,3250.4,3250.3,1.09322891]
[1765415977108,2.87885046,3250.4,3250.3,1.09322891]
[1765415977405,2.87885046,3250.4,3250.3,7.09322891]
[1765415977610,3.2078,3251.2,3250.6,0.15378]
[1765415978507,3.2078,3251.2,3250.8,2.0447]
[1765415978508,3.21625584,3251.2,3250.8,2.0447]
[1765415979106,0.00845584,3251.2,3250.9,0.75158712]
[1765415979906,3.2078,3251.1,3250.8,2.19847]
[1765415980108,3.2078,3251.1,3250.6,0.00461205]
[1765415980304,3.2078,3250.7,3250.6,0.00461205]
[1765415981612,9.2078,3250.7,3250.0,0.15381]
[1765415981812,3.2078,3250.7,3250.0,0.15381]
[1765415982009,3.2078,3250.7,3249.2,3.2078]
[1765415982209,11.53381262,3250.7,3248.8,3.2078]
[1765415982413,3.2078,3249.3,3247.6,0.15392]
[1765415982607,3.2078,3248.7,3248.0,2.0447]
[1765415982911,3.2078,3248.5,3248.1,0.1539]
[1765415983109,0.00217762,3248.5,3248.1,0.15612837]
[1765415983407,0.00217762,3248.5,3248.2,0.04264618]
[1765415983613,0.00461205,3248.8,3248.4,0.15389]
[1765415984011,0.00461205,3248.8,3248.5,1.39068174]
[1765415984205,0.94657743,3248.7,3248.4,0.15389]
[1765415984410,0.94657743,3248.6,3248.4,0.15389]
[1765415984610,0.00461205,3248.8,3248.7,2.0447]
[1765415984920,0.98869176,3248.8,3248.7,2.0447]
[1765415985104,1.57682869,3249.7,3249.2,0.15385]
[1765415985408,3.2078,3249.8,3249.2,0.15385]
[1765415985612,4.78462869,3250.1,3249.6,0.15383]
[1765415985911,1.57682869,3250.4,3249.6,0.15383]
[1765415986217,1.57682869,3250.2,3249.7,0.00461205]
[1765415986414,1.57682869,3250.0,3249.7,0.00461205]
[1765415986715,1.57682869,3250.2,3249.7,0.00461205]
[1765415986915,1.57682869,3250.1,3249.2,0.15385]
[1765415987213,1.57682869,3250.0,3249.2,0.15385]
[1765415987417,1.57682869,3250.0,3249.3,3.2078]
[1765415987712,3.2078,3250.1,3249.3,4.34274241]
[1765415987910,3.2078,3250.1,3249.7,3.2078]
[1765415988116,0.00461205,3250.3,3249.9,0.15382]
[1765415988315,0.00461205,3250.3,3250.1,3.2078]
[1765415989818,0.00461205,3250.3,3250.1,5.2525]
[1765415990020,0.00461205,3250.3,3250.1,5.40631]
[1765415990415,0.00295027,3250.4,3250.3,0.1538]
[1765415992317,5.31318852,3250.4,3250.0,0.00461205]
[1765415992513,2.65677394,3250.2,3249.6,3.2078]
[1765415992715,2.1206582,3249.8,3249.6,3.2078]
[1765415992916,2.1206582,3249.8,3249.5,0.15384]
[1765415993116,2.1206582,3249.6,3249.5,0.15384]
[1765415993314,3.21075027,3250.4,3249.5,0.15384]
[1765415993315,2.65677394,3249.8,3249.5,0.15384]
[1765415993515,2.65677394,3249.7,3249.5,0.15384]
[1765415993714,2.65677394,3249.9,3249.5,0.15384]
[1765415994223,2.65677394,3249.7,3249.2,3.2078]
[1765415994522,2.12683877,3249.3,3249.2,3.2078]
[1765415994719,2.65677394,3249.7,3249.3,0.99659892]
[1765415994915,2.65677394,3249.6,3249.3,0.99659892]
[1765415995116,2.65677394,3249.4,3249.2,3.2078]
[1765415995317,2.65677394,3249.3,3249.2,3.2078]
[1765415995823,2.65677394,3249.4,3249.2,3.2078]
[1765415996119,2.65677394,3249.4,3249.1,0.15385]
[1765415996318,2.66958259,3249.2,3249.1,0.15385]
[1765415996511,2.66958259,3249.2,3249.1,7.03595]
[1765415996714,2.66958259,3249.3,3249.2,8.08937638]
[1765415996914,2.13548877,3249.4,3249.3,6.8821]
[1765415997114,0.93800832,3249.4,3249.3,6.8821]
[1765415997424,0.93800832,3249.4,3249.3,7.03595]
[1765415997720,0.93800832,3249.4,3249.3,0.15385]
[1765415997925,0.93800832,3249.4,3249.3,3.57495]
[1765415998118,0.93800832,3249.4,3249.3,6.78275]
[1765415998319,0.93800832,3249.4,3249.3,10.24375]
[1765415999215,0.93800832,3249.4,3249.3,11.26876178]
[1765415999418,2.87219281,3249.4,3249.3,8.06096178]
[1765415999618,2.87222775,3249.4,3249.3,4.59996178]
[1765415999817,5.13689393,3249.4,3249.3,1.17886178]
[1765416000022,0.73009393,3249.4,3249.3,1.17886178]
[1765416000416,4.4068,3249.0,3248.9,3.2078]
[1765416000612,8.5023,3249.0,3248.7,2.0447]
[1765416000813,11.17188259,3249.0,3248.7,2.0447]
[1765416001014,11.17188259,3249.0,3248.7,0.15387]
[1765416001015,4.4068,3248.8,3248.7,0.15387]
[1765416001214,11.7101,3248.8,3248.1,3.21002837]
[1765416001514,8.5023,3248.2,3248.1,0.00222837]
[1765416001829,1.037,3248.0,3246.8,3.2078]
[1765416002029,3.2078,3247.1,3246.0,3.2078]
[1765416002218,2.1101,3247.3,3245.6,3.2078]
[1765416002219,2.68037516,3246.2,3245.6,3.2078]
[1765416002521,1.7,3245.9,3245.3,0.07114923]
[1765416002717,5.34465786,3245.4,3245.3,0.00330519]
[1765416002918,0.00855197,3245.9,3245.3,0.00330519]
[1765416002919,2.13685786,3245.6,3245.3,0.00330519]
[1765416003117,4.81093792,3245.8,3245.3,0.07445442]
[1765416003421,0.00855197,3245.9,3245.6,5.8053]
[1765416003622,1.47617078,3246.4,3246.3,0.15399]
[1765416003824,2.13685786,3246.9,3246.3,3.36179]
[1765416004119,3.2078,3246.6,3246.0,3.2078]
[1765416004320,3.2078,3246.2,3245.3,0.00330519]
[1765416004519,3.2078,3246.2,3245.4,3.2078]
[1765416004716,0.00461958,3246.1,3245.6,5.8053]
[1765416004921,0.00461958,3246.1,3245.6,2.5975]
[1765416005321,0.00461958,3246.1,3245.4,2.27891958]
[1765416005920,0.00461958,3246.1,3245.7,0.15401]
[1765416006529,0.00461958,3246.1,3245.8,2.00632742]
[1765416006829,0.00461958,3246.1,3245.7,0.0142373]
[1765416007133,0.00461958,3246.1,3245.9,1.97785325]
[1765416007320,0.00461958,3246.1,3246.0,0.154]
[1765416008125,6.00461958,3246.1,3245.6,5.8053]
[1765416008324,3.2078,3245.8,3245.4,2.27891958]
[1765416009730,0.00461958,3246.1,3245.6,2.5975]
[1765416009926,3.2078,3245.9,3245.7,0.15402]
[1765416010321,0.00461958,3246.1,3245.7,0.15402]
[1765416010728,0.00461958,3246.1,3245.8,0.15401]
[1765416011430,0.90374187,3246.0,3245.7,3.2078]
[1765416011728,3.2078,3245.8,3245.4,2.27891958]
[1765416011937,0.90374187,3245.7,3245.4,2.27891958]
[1765416012230,3.2078,3245.8,3245.4,2.27891958]
[1765416012231,0.90374187,3245.6,3245.4,2.27891958]
[1765416012427,0.90374187,3245.5,3245.4,2.27891958]
[1765416012828,6.90374187,3245.5,3245.3,0.00330519]
[1765416013026,4.11154187,3245.4,3244.5,3.2078]
[1765416013228,0.90374187,3245.3,3244.5,3.2078]
[1765416013427,0.90374187,3245.2,3244.5,3.2078]
[1765416013632,0.90374187,3245.1,3244.5,3.2078]
[1765416013934,3.2078,3244.9,3244.1,3.37052]
[1765416014123,0.90374187,3244.8,3244.5,0.00315936]
[1765416014328,0.90374187,3244.7,3244.5,0.00315936]
[1765416014529,0.90374187,3244.6,3244.5,0.00315936]
[1765416015637,3.2078,3245.3,3244.5,3.21095936]
[1765416015833,0.89855939,3245.2,3244.9,3.2078]
[1765416016141,3.2078,3245.8,3245.7,0.15401]
[1765416016441,0.00461958,3246.1,3245.7,3.36181]
[1765416016732,0.00461958,3246.1,3246.0,0.154]
[1765416017233,3.2078,3246.5,3246.4,2.73678]
[1765416017531,3.2078,3247.6,3246.4,5.7906]
[1765416017738,0.89949,3247.5,3247.4,0.15394]
[1765416017932,0.15384,3249.4,3247.4,0.15394]
[1765416017933,3.2078,3248.4,3248.0,2.5828]
[1765416018127,3.70725786,3249.6,3248.3,3.2078]
[1765416018128,3.2078,3248.8,3248.3,3.2078]
[1765416018334,3.21059953,3248.8,3248.3,3.21148544]
[1765416018533,0.00279953,3248.8,3248.3,9.21148544]
[1765416018735,0.00279953,3248.8,3248.7,0.15387]
[1765416019241,0.00279953,3248.8,3248.7,6.15387]
[1765416019933,0.00279953,3248.8,3248.7,7.34939565]
[1765416021134,0.00279953,3248.8,3248.7,1.34939565]
[1765416021530,0.00279953,3248.8,3248.7,1.19552565]
[1765416021728,6.90356982,3248.8,3248.3,0.00368544]
[1765416021930,0.90077029,3248.7,3248.2,0.00461958]
[1765416022141,3.2078,3248.5,3247.7,3.2078]
[1765416022330,3.2078,3248.1,3247.7,3.2078]
[1765416022533,3.2078,3248.5,3247.8,1.3803201]
[1765416022733,0.90119955,3248.4,3247.8,1.3803201]
[1765416023031,3.2078,3248.5,3248.1,2.5828]
[1765416023331,0.90155589,3248.4,3247.8,0.00400053]
[1765416023540,0.90155589,3248.3,3247.8,0.00400053]
[1765416023839,0.90155589,3248.2,3247.8,0.00400053]
[1765416024040,0.90155589,3248.1,3247.8,0.00400053]
[1765416024239,3.2078,3248.5,3247.8,0.00400053]
[1765416024536,0.90189604,3248.4,3247.8,0.00400053]
[1765416024731,0.90189604,3248.3,3247.8,0.00400053]
[1765416024927,0.90189604,3248.2,3247.8,0.00400053]
[1765416025131,0.90189604,3248.1,3247.8,0.00400053]
[1765416025437,0.90201177,3248.0,3247.8,0.00400053]
[1765416025637,3.2078,3248.5,3247.8,0.00400053]
[1765416025833,0.90207392,3248.4,3247.8,0.00400053]
[1765416026037,0.90207392,3248.3,3247.8,0.00400053]
[1765416026234,3.2078,3248.5,3247.8,0.00400053]
[1765416026436,0.90249516,3248.4,3247.8,0.00400053]
[1765416026631,0.90249516,3248.4,3248.1,2.5828]
[1765416026841,0.00279953,3248.8,3248.2,3.2078]
[1765416027234,3.2078,3250.0,3249.0,2.5828]
[1765416027435,0.90306126,3249.9,3249.0,2.5828]
[1765416027938,0.90306126,3249.9,3249.1,3.2078]
[1765416028139,0.00461958,3249.8,3249.2,0.00461958]
[1765416028934,0.00461958,3249.8,3249.4,0.15384]
[1765416029637,0.00461958,3249.8,3249.5,3.2078]
[1765416030339,0.00461958,3249.8,3249.6,0.93977845]
[1765416030545,0.00461958,3249.8,3249.2,1.37631958]
[1765416030748,3.2078,3249.4,3249.2,1.37631958]
[1765416031244,9.2078,3249.4,3249.2,1.37631958]
[1765416031643,9.2078,3249.4,3248.4,0.15389]
[1765416031644,9.2078,3249.4,3248.1,5.7906]
[1765416031839,3.2078,3248.9,3248.1,5.7906]
[1765416032143,3.2078,3248.9,3248.4,0.15389]
[1765416032346,3.2078,3248.9,3247.7,3.2078]
[1765416032545,3.2078,3248.2,3247.6,0.15393]
[1765416033739,3.2078,3248.2,3248.1,2.4553]
[1765416033941,3.2078,3248.2,3247.6,3.36173]
[1765416034134,3.2078,3248.2,3247.6,0.15393]
[1765416035747,3.2078,3248.7,3248.0,2.4553]
[1765416037949,3.2078,3248.3,3247.9,0.15391]
[1765416038249,3.2078,3248.3,3247.8,0.00400053]
[1765416038450,0.00461958,3249.8,3248.0,3.9895201]
[1765416038451,3.2078,3248.7,3248.0,3.9895201]
[1765416038653,3.2078,3248.7,3248.0,2.6092]
[1765416038845,3.2078,3248.3,3248.0,2.6092]
[1765416039155,3.2078,3248.3,3248.0,0.1539]
[1765416039355,3.2078,3248.3,3247.8,0.00400053]
[1765416039547,3.2078,3247.9,3247.8,0.00400053]
[1765416040050,4.1022876,3247.9,3246.9,0.00804]
[1765416040248,3.2078,3247.0,3246.9,0.00804]
[1765416040850,3.21115357,3247.0,3246.9,0.00269462]
[1765416042248,3.21115357,3247.0,3245.6,2.4553]
[1765416042249,9.21115357,3247.0,3245.6,2.4553]
[1765416042446,3.2078,3246.1,3245.6,2.4553]
[1765416042746,3.2078,3246.1,3242.9,0.15415]
[1765416042747,3.2078,3245.7,3245.3,2.1008]
[1765416043145,3.2078,3245.7,3244.5,0.15407]
[1765416043451,2.72967097,3246.0,3244.6,0.00276459]
[1765416043452,3.2078,3244.9,3244.6,0.00276459]
[1765416044447,3.2078,3245.3,3244.8,0.15406]
[1765416045251,3.2078,3245.3,3244.7,2.33389636]
[1765416045554,3.2078,3245.3,3245.2,0.15404]
[1765416046254,3.2078,3245.7,3245.4,2.4553]
[1765416046445,0.00461958,3246.2,3246.0,0.154]
[1765416046748,0.00461958,3246.2,3246.1,0.154]
[1765416046951,0.00461958,3246.2,3246.1,2.1033826]
[1765416047145,0.00461958,3246.2,3246.1,0.154]
[1765416047847,3.21241958,3246.2,3246.1,0.154]
[1765416048049,3.21241958,3246.2,3245.4,2.4553]
[1765416048249,3.21241958,3246.2,3245.7,0.15402]
[1765416048448,3.2078,3245.8,3245.7,0.15402]
[1765416048652,3.21241958,3246.2,3245.8,0.15401]
[1765416048858,3.07562369,3246.2,3245.7,0.01423818]
[1765416049153,3.07562369,3246.2,3245.4,5.6631]
[1765416049154,3.07562369,3246.2,3245.5,2.00632654]
[1765416049553,3.2078,3246.6,3246.0,0.154]
[1765416049748,3.21241958,3246.6,3246.3,2.60929]
[1765416050053,0.00461958,3246.6,3246.3,2.60929]
[1765416050253,3.21241958,3246.6,3246.3,0.15399]
[1765416050857,3.21241958,3246.6,3246.0,0.00461958]
[1765416051058,3.2078,3246.2,3246.0,0.00461958]
[1765416051960,3.21241958,3246.6,3246.1,0.154]
[1765416052355,3.21241958,3246.6,3246.2,0.15399]
[1765416053155,3.21241958,3246.6,3246.0,0.00461958]
[1765416053360,0.00461958,3246.6,3246.5,0.15398]
[1765416053864,0.00461958,3246.6,3246.5,1.94679614]
[1765416054764,0.00461958,3246.6,3246.5,0.15398]
[1765416055354,0.00461958,3246.6,3246.5,11.18306241]
[1765416055570,9.58e-06,3246.6,3246.5,11.18306241]
[1765416055862,3.15e-06,3247.0,3246.9,0.15396]
[1765416056064,3.15e-06,3247.0,3246.9,3.36176]
[1765416056253,3.15e-06,3247.0,3246.9,9.36176]
[1765416056658,3.15e-06,3247.0,3246.9,5.06920538]
[1765416056858,3.15e-06,3247.0,3246.9,5.07268053]
[1765416057261,3.15e-06,3247.0,3246.9,3.36523515]
[1765416057563,3.15e-06,3247.0,3246.9,0.15743515]
[1765416058064,3.15e-06,3247.0,3246.9,0.00347515]
[1765416063670,3.15e-06,3247.0,3246.9,1.86488053]
[1765416063967,3.15e-06,3247.0,3246.9,7.86488053]
[1765416064168,3.15e-06,3247.0,3246.9,0.00347515]
[1765416064663,3.15e-06,3247.0,3246.9,1.86488053]
[1765416065166,3.15e-06,3247.0,3246.9,0.15743515]
[1765416066458,3.15e-06,3247.0,3246.9,7.86488053]
[1765416066663,2.73e-06,3247.3,3247.2,2.65275]
[1765416066859,2.73e-06,3247.3,3247.2,5.86055]
[1765416067062,2.73e-06,3247.3,3247.2,11.86055]
[1765416067270,2.73e-06,3247.3,3247.2,13.48263601]
[1765416067474,1.73911376,3251.0,3249.3,0.15385]
[1765416067771,3.2078,3250.2,3249.6,2.65263]
[1765416068069,3.2078,3250.6,3249.7,0.22483482]
[1765416068275,3.2078,3250.6,3249.7,3.27880482]
[1765416068472,0.00461958,3250.5,3250.3,0.15379]
[1765416068771,0.00461958,3250.5,3250.4,0.79535169]
[1765416069172,0.0023201,3251.0,3250.4,6.0]
[1765416069372,0.0023201,3251.0,3250.9,3.36157]
[1765416069577,3.2078,3251.9,3251.0,2.4988]
[1765416069773,3.2078,3252.5,3252.0,2.4988]
[1765416069976,3.681,3253.8,3252.0,2.4988]
[1765416070169,3.2078,3252.9,3252.6,0.00461198]
[1765416070474,0.00461198,3253.2,3253.0,2.5177]
[1765416070665,0.00687801,3253.2,3253.0,2.52021236]
[1765416070870,0.00687801,3253.2,3253.1,3.36147]
[1765416071066,0.00687801,3253.2,3253.0,2.52021236]
[1765416071473,0.00687801,3253.2,3253.0,0.00251236]
[1765416071671,0.00687801,3253.2,3252.6,0.00461198]
[1765416071868,3.21467801,3253.2,3252.6,0.00461198]
[1765416072069,3.21467801,3253.2,3252.7,0.01742513]
[1765416072469,0.00687801,3253.2,3253.0,2.5177]
[1765416072771,0.00687801,3253.2,3253.0,2.52083482]
[1765416072971,0.00687801,3253.2,3253.1,6.15367]
[1765416073166,0.00687801,3253.2,3253.1,0.15367]
[1765416073474,0.00687801,3253.2,3253.0,2.52083482]
[1765416073773,0.00687801,3253.2,3253.0,0.00313482]
[1765416073974,6.00687801,3253.2,3252.6,0.00461198]
[1765416074173,3.2078,3252.7,3251.6,3.2078]
[1765416074370,3.2078,3252.3,3251.6,3.2078]
[1765416074570,0.00687801,3253.2,3252.1,0.17338611]
[1765416074571,3.2078,3252.7,3252.1,0.17338611]
[1765416075169,3.2078,3252.7,3252.1,0.00750258]
[1765416075472,3.2078,3252.3,3252.1,0.16670824]
[1765416076676,3.2078,3252.3,3252.1,0.00750258]
[1765416077767,6.0,3252.2,3251.0,5.7066]
[1765416077975,3.2078,3251.8,3251.0,5.86036]
[1765416078279,3.2078,3251.8,3251.1,0.37195821]
[1765416078773,3.2078,3251.8,3251.2,0.15375]
[1765416079079,3.2078,3251.8,3251.3,0.04256229]
[1765416079279,3.2078,3251.8,3251.7,2.5177]
[1765416079976,2.72967097,3251.6,3249.9,3.2078]
[1765416080281,3.2078,3250.2,3249.5,3.2078]
[1765416080575,3.20999593,3250.2,3249.6,0.17039847]
[1765416080875,3.2078,3252.0,3250.8,2.5177]
[1765416081078,0.00461198,3251.7,3251.2,0.15376]
[1765416081578,0.00461198,3251.7,3251.3,0.4287088]
[1765416081888,3.2078,3251.5,3251.3,0.00244851]
[1765416082179,3.2078,3251.5,3250.6,3.2078]
[1765416082582,0.00774517,3251.7,3250.6,3.2078]
[1765416082583,0.00774517,3251.7,3250.8,2.67147]
[1765416083176,0.00774517,3251.7,3251.0,3.2078]
[1765416083376,3.2078,3251.5,3251.1,0.15376]
[1765416083573,3.2078,3251.5,3250.8,2.5177]
[1765416083778,3.2078,3251.0,3250.6,3.2078]
[1765416084576,3.2078,3251.5,3250.6,3.2078]
[1765416084782,3.2078,3251.5,3250.8,2.5177]
[1765416085581,0.00774517,3251.7,3250.6,3.36158]
[1765416085582,3.2078,3251.1,3250.6,3.36158]
[1765416086184,3.2078,3251.1,3247.3,3.083]
[1765416086185,3.2078,3251.1,3249.9,5.7255]
[1765416086483,3.2078,3250.7,3249.9,5.7255]
[1765416087387,3.2078,3250.7,3249.9,5.87932]
[1765416088887,3.2078,3250.0,3249.1,3.2078]
[1765416089180,0.00461198,3249.9,3249.1,4.24462498]
[1765416089781,3.2078,3249.8,3249.2,0.15385]
[1765416089988,3.2078,3249.8,3249.3,0.15385]
[1765416091089,0.91119322,3249.7,3249.3,0.15385]
[1765416091290,2.72967097,3249.5,3248.7,3.2078]
[1765416091488,3.2078,3249.3,3248.3,3.2078]
[1765416091782,3.2078,3248.9,3248.3,3.2078]
[1765416091983,0.91128907,3248.8,3248.3,3.2078]
[1765416092186,0.91128907,3248.7,3248.3,3.2078]
[1765416092389,0.91128907,3248.6,3248.3,3.2078]
[1765416092690,3.2078,3248.9,3248.3,3.2078]
[1765416092889,0.9117129,3248.8,3248.3,3.2078]
[1765416093091,0.9117129,3248.7,3248.3,3.2078]
[1765416093288,0.9117129,3248.6,3248.3,3.2078]
[1765416093486,0.9117129,3248.5,3248.3,3.2078]
[1765416093684,0.9117129,3248.4,3248.3,3.2078]
[1765416094191,1.58763988,3249.3,3248.3,4.51703656]
[1765416094496,0.91310701,3249.2,3248.6,0.15388]
[1765416094802,0.00229612,3249.3,3248.3,3.2078]
[1765416094803,0.91310701,3249.1,3248.4,1.18131376]
[1765416094996,0.00229612,3249.3,3249.1,0.15386]
[1765416095303,0.00229612,3249.3,3249.2,0.15385]
[1765416096106,0.00461198,3249.9,3249.6,2.3444]
[1765416096402,0.91564159,3249.8,3249.6,2.3444]
[1765416096604,0.00461198,3249.9,3249.6,2.3444]
[1765416096605,0.91564159,3249.7,3249.6,2.3444]
[1765416097097,0.91903454,3249.7,3249.6,2.34686102]
[1765416097803,0.91903454,3249.7,3249.6,2.50069102]
[1765416098501,0.00339295,3249.7,3249.6,9.44046947]
[1765416098705,0.00461198,3249.9,3249.8,0.15382]
[1765416099596,0.00758442,3249.9,3249.8,0.15382]
[1765416099796,0.00758442,3249.9,3249.8,6.15382]
[1765416100401,0.00758442,3249.9,3249.8,7.03678498]
[1765416100601,0.00758442,3249.9,3249.8,0.15382]
[1765416101804,1.58534376,3250.6,3250.1,0.15381]
[1765416102107,1.58534376,3250.6,3250.4,2.3444]
[1765416102297,1.58534376,3250.7,3250.4,2.3444]
[1765416102598,1.58534376,3250.8,3250.4,2.3444]
[1765416102800,1.58534376,3250.8,3250.1,3.2078]
[1765416102801,1.58534376,3250.7,3250.3,0.00461198]
[1765416103105,3.2078,3250.4,3249.6,0.00246102]
[1765416103294,1.59302383,3249.9,3249.6,0.00246102]
[1765416103500,1.59302383,3249.9,3249.6,2.34686102]
[1765416103701,1.59302383,3249.8,3249.6,2.34686102]
[1765416103901,1.59302383,3249.8,3249.6,0.00246102]
[1765416104106,1.59302383,3249.7,3249.6,0.00246102]
[1765416104308,1.59302383,3249.8,3249.6,0.00246102]